Cogmind - Beta 10.2 @@@ ROGUE MODE // 2020.11.27 @ 21:59:33 // Halloween2020/ForbiddenLore Player: Smokey Result: Destroyed by S-10 Pest with Light Assault Rifle Performance ------------- Evolutions (0) 0 Regions Visited (2) 400 Robots Destroyed (9) 45 Value Destroyed (44) 44 Prototype IDs (0) 0 Alien Tech Used (0) 0 Bonus (0) 0 TOTAL SCORE: 489 Bonus ------- None Cogmind --------- Core Integrity 0/250 Matter 183/300 Energy 100/100 System Corruption 0% Temperature Cool (0) Movement Core (150) Ox2 Location -10/Mines Parts ------- > --- POWER (1) -------- (None) > --- PROPULSION (2) --- (None) > --- UTILITY (2) ------ Small Storage Unit Small Storage Unit > --- WEAPON (2) ------- (None) > --- INVENTORY (8) ---- Ion Engine Armored Wheel Salvage Targeting Computer Medium Armor Plating Medium Armor Plating Medium Armor Plating Light Assault Rifle Peak State ------------ > --- POWER ------------ Ion Engine > --- PROPULSION ------- Light Treads Light Treads > --- UTILITY ---------- Small Storage Unit Small Storage Unit > --- WEAPON ----------- Rocket Launcher Rocket Launcher > --- INVENTORY -------- Ion Engine Armored Wheel Salvage Targeting Computer Medium Armor Plating Medium Armor Plating Light Assault Rifle [Rating: 10] Favorites ----------- Power Ion Engine Engine Ion Engine Propulsion Light Treads Treads Light Treads Wheel Wheel Utility Small Storage Unit Storage Small Storage Unit Weapon Assault Rifle Ballistic Gun Assault Rifle Launcher Rocket Launcher Build | -11 -10 -10 ------- Run | Scr Mat Min Slots Evolved . | . . . Power . | . . . Propulsion . | . . . Utility . | . . . Weapon . | . . . Parts Attached 10 | 8 2 . Power 1 | 1 . . Engine 1 | 1 . . Core . | . . . Reactor . | . . . Propulsion 3 | 3 . . Treads 2 | 2 . . Leg . | . . . Wheel 1 | 1 . . Hover . | . . . Flight . | . . . Utility 2 | 2 . . Device . | . . . Storage 2 | 2 . . Processor . | . . . Hackware . | . . . Protection . | . . . Artifact . | . . . Weapon 4 | 2 2 . Energy Gun . | . . . Energy Cannon . | . . . Ballistic Gun 2 | 2 . . Ballistic Cannon . | . . . Launcher 2 | . 2 . Special Weapon . | . . . Impact Weapon . | . . . Slashing Weapon . | . . . Piercing Weapon . | . . . Special Melee Weapon . | . . . Unidentified Prototypes . | . . . Parts Lost 5 | . 1 4 Power 1 | . . 1 Propulsion 2 | . . 2 Utility . | . . . Weapon 2 | . 1 1 Highest Loss Streak 5 | . 1 5 Average Slot Usage (%) 93 | . 99 67 Engine 14 | . 14 14 Treads 26 | . 28 21 Storage 28 | . 28 28 Ballistic Gun 9 | . 11 . Launcher 13 | . 15 3 Naked Turns . | . . . Heaviest Build 21 | 17 21 17 Greatest Support 40 | 40 40 40 Greatest Overweight (x) 4 | . . 4 Average Overweight (x) . | . . . Largest Inventory Capacity 8 | 8 8 8 Average Capacity 7 | 5 8 8 Most Carried 7 | 4 7 7 Average Carried 4 | 2 5 7 Final Capacity 8 | 8 8 8 Final Carried 7 | 2 7 7 Class Distribution -------------------- 100% | Mutant Dominant Class ---------------- Mutant | -10/Materials Mutant | -10/Mines Resources | -11 -10 -10 ----------- Run | Scr Mat Min Matter Collected 316 | 316 . . Remotely . | . . . Salvage Created 197 | 193 4 . Parts 18 | 13 5 . Haulers Intercepted . | . . . Recyclers Shooed 3 | 1 2 . Parts Field Recycled . | . . . Retrieved Matter . | . . . Parts Self-Destructed . | . . . Prevented . | . . . Kills | -11 -10 -10 ------- Run | Scr Mat Min Combat Hostiles Destroyed . | . . . Classes Destroyed 4 | 3 1 . Worker 2 | 2 . . Builder 3 | . 3 . Tunneler 3 | 3 . . Recycler 1 | 1 . . Best Kill Streak 3 | 3 2 . Combat Bots Only . | . . . Max Kills in Single Turn 2 | 2 1 . Gunslinging . | . . . Exploded . | . . . Melee . | . . . Uniques/NPCs Destroyed . | . . . Combat | -11 -10 -10 -------- Run | Scr Mat Min Damage Taken 871 | . 389 482 Core 255 | . 46 209 Absorbed by Shields . | . . . Core Remaining (%) 100 | 100 . . Volleys Fired 13 | 8 5 . Largest 2 | 2 2 . Hottest 66 | 40 66 . Shots Fired 26 | 16 10 . Gun 16 | 16 . . Cannon . | . . . Launcher 10 | . 10 . Special . | . . . Kinetic 16 | 16 . . Thermal . | . . . Explosive 10 | . 10 . Electromagnetic . | . . . Robot Hit Streak 4 | 3 4 . Robot Miss Streak 4 | 1 4 . Penetration Max . | . . . Secondary Targets . | . . . Shots Hit Robots 14 | 9 5 . Core Hits 11 | 6 5 . Critical Hits . | . . . Critical Kills . | . . . Critical Parts Destroyed . | . . . Melee Attacks . | . . . Impact . | . . . Slashing . | . . . Piercing . | . . . Sneak Attacks . | . . . Combat Hostiles . | . . . Follow-up Attacks . | . . . Damage Inflicted 466 | 160 306 . Guns 160 | 160 . . Cannons . | . . . Explosions 306 | . 306 . Melee . | . . . Ramming . | . . . Kinetic 160 | 160 . . Thermal . | . . . Explosive 306 | . 306 . Electromagnetic . | . . . Impact . | . . . Slashing . | . . . Piercing . | . . . Highest Corruption . | . . . Average Corruption . | . . . Corruption Purged . | . . . Overload Shots . | . . . Overflow Damage 11 | . 11 . Projectiles . | . . . Explosions 11 | . 11 . Melee . | . . . Knockbacks . | . . . Impact . | . . . Kinetic . | . . . Secondary . | . . . Self-Inflicted Damage 129 | . 129 . Shots 4 | . 4 . Rammed . | . . . Targets Rammed . | . . . Kicked . | . . . Crushed . | . . . Highest Temperature 18 | . 18 . Average Temperature 8 | . 8 . Received Heat Transfer 255 | . 144 111 Siege Activations . | . . . Robots Corrupted . | . . . Combat Hostiles . | . . . Parts Fried . | . . . Impact Corruptions . | . . . Robots Melted . | . . . Combat Hostiles . | . . . Parts Melted . | . . . Heat Transferred . | . . . Parts Sabotaged . | . . . Parts Stolen . | . . . Parts Stripped . | . . . Power Chain Reactions . | . . . Missiles Intercepted . | . . . Alert | -11 -10 -10 ------- Run | Scr Mat Min Peak Influence 34 | 30 34 15 Initial 19 | . 19 9 Average 15 | 9 22 1 Maximum Alert Level . | . . . Low Security (%) 100 | 100 100 100 Level 1 . | . . . Level 2 . | . . . Level 3 . | . . . Level 4 . | . . . Level 5 . | . . . High Security . | . . . Max Security . | . . . Squads Dispatched 1 | . 1 . Investigation 1 | . 1 . Extermination . | . . . Reinforcement . | . . . Assault . | . . . Garrison . | . . . Intercept . | . . . Construction Impeded . | . . . Haulers Reinforced . | . . . Stealth | -11 -10 -10 --------- Run | Scr Mat Min Distress Signals . | . . . Communications Jammed . | . . . Distress Signals . | . . . Times Spotted 12 | . 6 6 Peak Tracking Total 5 | . 5 5 Tactical Retreats 1 | . . 1 Traps | -11 -10 -10 ------- Run | Scr Mat Min Traps Triggered . | . . . Indirectly . | . . . Trap Hack Attempts . | . . . Triggered . | . . . Disarmed . | . . . Reprogrammed . | . . . Reused . | . . . Traps Extracted . | . . . Installed . | . . . Triggered . | . . . Machines | -11 -10 -10 ---------- Run | Scr Mat Min Machines Disabled . | . . . Max in Single Turn . | . . . Machines Sabotaged . | . . . Garrisons Compromised . | . . . Overloaded Fab Kills . | . . . Fab Network Shutdowns . | . . . Hacking | -11 -10 -10 --------- Run | Scr Mat Min Machines Accessed 1 | . 1 . Terminals 1 | . 1 . Fabricators . | . . . Repair Stations . | . . . Recycling Units . | . . . Scanalyzers . | . . . Garrison Access . | . . . Total Hacks 3 | . 3 . Successful . | . . . Failed 3 | . 3 . Catastrophic . | . . . Database Lockouts . | . . . Manual . | . . . Terminals 3 | . 3 . Fabricators . | . . . Repair Stations . | . . . Recycling Units . | . . . Scanalyzers . | . . . Garrison Access . | . . . Terminal Hacks . | . . . Fabricator Hacks . | . . . Repair Station Hacks . | . . . Recycling Unit Hacks . | . . . Scanalyzer . | . . . Garrison Access Hacks . | . . . Unauthorized Hacks . | . . . Terminals . | . . . Fabricators . | . . . Repair Stations . | . . . Recycling Units . | . . . Scanalyzers . | . . . Garrison Access . | . . . Data Cores Recovered . | . . . Used . | . . . Hacking Detections 1 | . 1 . Full Trace Events 1 | . 1 . Feedback Events . | . . . Feedback Blocked . | . . . Robot Schematics Acquired . | . . . Robots Built . | . . . Matter . | . . . Time . | . . . Total Robot Build Rating . | . . . Part Schematics Acquired . | . . . Parts Built . | . . . Matter . | . . . Time . | . . . Total Part Build Rating . | . . . Parts Repaired . | . . . Time . | . . . Parts Recycled . | . . . Recycled Matter . | . . . Retrieved Matter . | . . . Retrieved Components . | . . . Parts Scanalyzed . | . . . Part Schematics Acquired . | . . . Parts Damaged . | . . . Bothacking | -11 -10 -10 ------------ Run | Scr Mat Min Used RIF Installer . | . . . Robots Hacked . | . . . Non-combat . | . . . Combat . | . . . Robot Hacks Applied . | . . . Relay Couplers Released . | . . . Robots Rewired . | . . . Allies Hacked . | . . . Hacks Repelled . | . . . Allies | -11 -10 -10 -------- Run | Scr Mat Min Total Allies . | . . . Largest Group . | . . . Highest-Rated Group . | . . . Highest-Rated Ally . | . . . Total Orders . | . . . Ally Attacks . | . . . Total Damage . | . . . Kills . | . . . Allies Corrupted . | . . . Allies Melted . | . . . Intel | -11 -10 -10 ------- Run | Scr Mat Min Robot Analysis Total . | . . . Derelict Logs Recovered . | . . . Drone Launches . | . . . Drone Recoveries . | . . . Exploration | -11 -10 -10 ------------- Run | Scr Mat Min Turns Passed 345 | 138 169 38 Spaces Moved 172 | 59 91 22 Core 7 | 3 . 4 Treads 161 | 52 91 18 Legs . | . . . Wheels 4 | 4 . . Hover . | . . . Flight . | . . . Fastest Speed 50 | 50 160 150 Average Speed 157 | 148 160 171 Slowest Speed 250 | 160 160 250 Overloaded Moves . | . . . Propulsion Burnouts . | . . . Robots Hopped . | . . . Cave-ins Triggered . | . . . Exploration Rate (%) 11 | 5 18 11 Regions Visited 2 Branch Regions 1 Pre-discovered Areas . | . . . Known Exits Taken . | . . . Unknown Exits Taken 2 | 1 1 . Scrap Searched . | . . . Spaces Dug . | . . . Terrain Destroyed 54 | . 54 . Melee . | . . . Projectile . | . . . AOE 54 | . 54 . Terrain Rammed . | . . . Walls Destroyed . | . . . Machines Disabled . | . . . Actions | -11 -10 -10 --------- Run | Scr Mat Min Total 223 | 95 106 22 Wait 6 | 6 . . Move 170 | 58 90 22 Hop . | . . . Pick Up 19 | 12 7 . Fast Attach . | . . . Attach 10 | 8 2 . Detach . | . . . Swap . | . . . Drop 5 | 3 2 . Fire 13 | 8 5 . Melee . | . . . Ram . | . . . Kick . | . . . Crush . | . . . Escape Stasis . | . . . Rewire . | . . . Trap . | . . . Miscellaneous . | . . . Route ------- -11/Scrapyard -10/Materials -10/Mines History --------- Turn | Location | Event 26 | -11/Scrapyard | Discovered new exit (range 15) 139 | -11/Scrapyard | Entered Materials 286 | -10/Materials | Discovered new exit (range 13) 302 | -10/Materials | Build established: Mutant 308 | -10/Materials | Entered Mines 337 | -10/Mines | Core integrity fell below 50% 343 | -10/Mines | Core integrity fell below 20% 346 | -10/Mines | Destroyed by S-10 Pest with Light Assault Rifle Last Messages --------------- 00270_ U-05 Engineer lays Concrete. 00272_ Destroyed Wheel. 00272_ Destroyed Terrain Scanner. 00272_ U-05 Engineer destroyed. 00274_ The unstable cave ceiling collapses. 00278_ R-06 Scavenger collects Terrain Scan Processor. 00285_ R-06 Scavenger collects Structural Scanner. 00286_ EXIT=FOUND 00287_ The unstable cave ceiling collapses. 00294_ Rocket Launcher destroyed. 00303_ R-06 Scavenger destroyed. 00308_ R-06 Scavenger collects Terrain Scan Processor. LOCATION=UNKNOWN GOAL=ESCAPE 00310_ Rocket Launcher destroyed. 00334_ Lgt. Treads destroyed. 00336_ K-01 Serf collects debris. 00337_ Critical hit. 00337_ Lgt. Treads destroyed. 00344_ Ion Engine destroyed. Map ----- +----------------------------------------------------+ | | | | | ???????????????????????????????????##????????????? | | ??????????????????????????#########T###??????????? | | ?????????????????????###### #??????????? | | ?????????????????????? #??????????? | | ???????????????????????? """ #??????????? | | ??????????????????????????# """ #??????????? | | ??????????????????????????# """ #??????????? | | ??????????????????????????# #??????????? | | ??????????????????????????# """ #??????????? | | ??????????????????????????# """ #??????????? | | ??????????????????????????# """ #??????????? | | ??????????????????????????# #??????????? | | ??????????????????????????# #??????????? | | ??????????????????????????####### ####??????????? | | ????????????????????????????????# #?????????????? | | ?????????????????????????######## #?????????????? | | ?????????????????????????# #?????????????? | | ?????????????????????????# #?????????????? | | ?????????????????????????# s########?????????????? | | ???????????????????????###ss#????????????????????? | | ???????????????????????# ###??????????????????? | | ??????????????# ##### ##?????????????????? | | ?????????????????# k gg #?????????????????? | | ?????????????????# ##### @ #?????????????????? | | ???????????????????????# ##?????????????????? | | ???????????????????????## ##??????????????????? | | ????????????????????????######???????????????????? | | ?????????????????????????????????????????????????? | | ?????????????????????????????????????????????????? | | ?????????????????????????????????????????????????? | | ?????????????????????????????????????????????????? | | ?????????????????????????????????????????????????? | | ?????????????????????????????????????????????????? | | ?????????????????????????????????????????????????? | | ?????????????????????????????????????????????????? | | ?????????????????????????????????????????????????? | | ?????????????????????????????????????????????????? | | ?????????????????????????????????????????????????? | | ?????????????????????????????????????????????????? | | ?????????????????????????????????????????????????? | | ?????????????????????????????????????????????????? | | ?????????????????????????????????????????????????? | | ?????????????????????????????????????????????????? | | ?????????????????????????????????????????????????? | | ?????????????????????????????????????????????????? | | ?????????????????????????????????????????????????? | | ?????????????????????????????????????????????????? | | ?????????????????????????????????????????????????? | +----------------------------------------------------+ Best States ------------- Heat Dissipation 25 Energy Generation 10 Energy Capacity 250 Matter Stores 300 Matter Capacity 300 Sight Range 16 Terrain Scan Density 10 Evasion (%) 50 Recoil Reduction 2 Item Schematics ----------------- None Robot Schematics ------------------ None Fabricated ------------ Nothing Alien Tech Used ----------------- None Achievements -------------- None Challenges ------------ None Game ------ Seed StasisMicroScythe Manual? 0 Play Time 00:07:54 Cumulative 9.7 hours Start 2020.11.27 @ 21:51:51 End 2020.11.27 @ 21:59:33 Sessions 1 Manual Loads 0 Difficulty Rogue Special Mode Halloween2020/ForbiddenLore Game No. 23 Rogue 22 Adventurer 1 Explorer 0 Win Type - Total 0 Types 0/0/0/0/0/0/0/0/0 Lore% 15 Gallery% 16 Achievement% 7 Wizard Run 0 Options --------- ASCII 0 Keyboard 0 Movement Mouse Keybinds 0 Fullscreen 2 Font 18/SmallcapsGlow Map View 76x50 Tactical HUD 1 Map Filters NONE Filters NONE Steam X RUN: 5e69beee-a54a-4366-94c0-d8dac776227e